fUSD/lending_fUSD_20250221
["ID","MTS","AMOUNT","RATE_DAILY","PERIOD"]
[353955575,1740166247662,-500.0,0.0001104,2]
[353955576,1740166247672,-500.0,0.0001104,2]
[353955577,1740166247682,-500.0,0.0001104,2]
[353955578,1740166247691,-647.51,0.0001104,2]
[353955579,1740166247701,-500.0,0.0001104,2]
[353955580,1740166247712,-500.0,0.0001104,2]
[353955581,1740166247722,-700.96,0.0001104,2]
[353955582,1740166247731,-500.0,0.0001104,2]
[353955583,1740166247741,-514.44,0.0001104,2]
[353955584,1740166247751,-500.0,0.0001104,2]
[353955585,1740166247763,-500.0,0.0001104,2]
[353955586,1740166247774,-522.11,0.0001104,2]
[353955587,1740166247784,-500.0,0.0001104,2]
[353955588,1740166247794,-547.58,0.0001104,2]
[353955589,1740166247804,-500.0,0.0001104,2]
[353955590,1740166247814,-666.62,0.0001104,2]
[353955591,1740166247823,-699.92,0.0001104,2]
[353955592,1740166247832,-500.0,0.0001104,2]
[353955593,1740166247842,-500.0,0.0001104,2]
[353955594,1740166247851,-500.0,0.0001104,2]
[353955595,1740166247861,-514.88984611,0.0001104,2]
[353955596,1740166247871,-500.0,0.0001104,2]
[353955597,1740166247881,-500.0,0.0001104,2]
[353955598,1740166247890,-509.10359435,0.0001104,2]
[353955599,1740166247900,-500.0,0.0001104,2]
[353955600,1740166247909,-501.19148623,0.0001104,2]
[353955601,1740166247919,-500.0,0.0001104,2]
[353955602,1740166247928,-500.0,0.0001104,2]
[353955603,1740166247937,-500.0,0.0001104,2]
[353955604,1740166247946,-408.48136347,0.0001104,2]
[353955605,1740166247955,-523.56595865,0.0001104,2]
[353955606,1740166247964,-500.0,0.0001104,2]
[353955607,1740166247973,-632.57,0.0001104,2]
[353955608,1740166247981,-500.0,0.0001104,2]
[353955609,1740166247990,-586.96,0.0001104,2]
[353955610,1740166247999,-500.0,0.0001104,2]
[353955611,1740166248009,-480.03733912,0.0001104,2]
[353955612,1740166248019,-500.0,0.0001104,2]
[353955613,1740166248028,-500.0,0.0001104,2]
[353955614,1740166248039,-500.0,0.0001104,2]
[353955615,1740166248048,-500.0,0.0001104,2]
[353955616,1740166248060,-500.0,0.0001104,2]
[353955617,1740166248071,-500.0,0.0001104,2]
[353955618,1740166248081,-719.94,0.0001104,2]
[353955619,1740166248091,-500.0,0.0001104,2]
[353955620,1740166248101,-500.0,0.0001104,2]
[353955621,1740166248111,-500.0,0.0001104,2]
[353955622,1740166248121,-500.0,0.0001104,2]
[353955623,1740166248130,-500.0,0.0001104,2]
[353955624,1740166248140,-500.0,0.0001104,2]
[353955625,1740166248149,-500.0,0.0001104,2]
[353955626,1740166248160,-500.0,0.0001104,2]
[353955627,1740166248170,-500.0,0.0001104,2]
[353955628,1740166248180,-500.0,0.0001104,2]
[353955629,1740166248190,-500.0,0.0001104,2]
[353955630,1740166248200,-500.0,0.0001104,2]
[353955631,1740166248210,-500.0,0.0001104,2]
[353955632,1740166248219,-500.0,0.0001104,2]
[353955633,1740166248230,-500.0,0.0001104,2]
[353955634,1740166248240,-500.0,0.0001104,2]
[353955635,1740166248249,-500.0,0.0001104,2]
[353955636,1740166248260,-500.0,0.0001104,2]
[353955637,1740166248270,-499.79699322,0.0001104,2]
[353955638,1740166248282,-500.0,0.0001104,2]
[353955639,1740166248299,-500.0,0.0001104,2]
[353955640,1740166248309,-500.0,0.0001104,2]
[353955641,1740166248319,-500.0,0.0001104,2]
[353955642,1740166248329,-584.85,0.0001104,2]
[353955643,1740166248340,-500.0,0.0001104,2]
[353955644,1740166248350,-500.0,0.0001104,2]
[353955645,1740166248360,-500.0,0.0001104,2]
[353955646,1740166248372,-500.0,0.0001104,2]
[353955647,1740166248382,-500.0,0.0001104,2]
[353955648,1740166248392,-500.0,0.0001104,2]
[353955649,1740166248402,-500.0,0.0001104,2]
[353955650,1740166248413,-500.0,0.0001104,2]
[353955651,1740166248423,-500.0,0.0001104,2]
[353955652,1740166248433,-500.0,0.0001104,2]
[353955653,1740166248443,-500.0,0.0001104,2]
[353955654,1740166248453,-500.0,0.0001104,2]
[353955655,1740166248463,-500.0,0.0001104,2]
[353955656,1740166248473,-500.0,0.0001104,2]
[353955657,1740166248483,-500.0,0.0001104,2]
[353955658,1740166248493,-500.0,0.0001104,2]
[353955659,1740166248503,-500.0,0.0001104,2]
[353955660,1740166248513,-403.68782345,0.0001104,2]
[353955661,1740166248524,-500.0,0.0001104,2]
[353955662,1740166248534,-500.0,0.0001104,2]
[353955663,1740166248545,-500.0,0.0001104,2]
[353955664,1740166248555,-500.0,0.0001104,2]
[353955665,1740166248566,-500.0,0.0001104,2]
[353955666,1740166248577,-500.0,0.0001104,2]
[353955667,1740166248588,-363.8001145,0.0001104,2]
[353955668,1740166248597,-500.0,0.0001104,2]
[353955669,1740166248609,-503.92,0.0001104,2]
[353955670,1740166248619,-500.0,0.0001104,2]
[353955671,1740166248629,-520.23857426,0.0001104,2]
[353955672,1740166248639,-500.0,0.0001104,2]
[353955673,1740166248649,-500.0,0.0001104,2]
[353955674,1740166248659,-500.0,0.0001104,2]
[353955675,1740166248669,-645.81,0.0001104,2]
[353955676,1740166248680,-500.0,0.0001104,2]
[353955677,1740166248690,-500.0,0.0001104,2]
[353955678,1740166248700,-331.8066911,0.0001104,2]
[353955679,1740166248710,-500.0,0.0001104,2]
[353955680,1740166248721,-414.93348119,0.0001104,2]
[353955681,1740166248731,-500.0,0.0001104,2]
[353955682,1740166248741,-500.0,0.0001104,2]
[353955683,1740166248752,-687.46,0.0001104,2]
[353955684,1740166248763,-508.9574144,0.0001104,2]
[353955685,1740166248774,-502.31648222,0.0001104,2]
[353955686,1740166248785,-500.0,0.0001104,2]
[353955687,1740166248795,-531.57677858,0.0001104,2]
[353955688,1740166248805,-1222.96,0.0001104,2]
[353955689,1740166248815,-500.0,0.0001104,2]
[353955690,1740166248825,-500.0,0.0001104,2]
[353955691,1740166248836,-500.0,0.0001104,2]
[353955692,1740166248846,-500.0,0.0001104,2]
[353955693,1740166248856,-776.53,0.0001104,2]
[353955694,1740166248867,-500.0,0.0001104,2]
[353955695,1740166248878,-543.08,0.0001104,2]
[353955696,1740166248889,-500.0,0.0001104,2]
[353955697,1740166248899,-659.59,0.0001104,2]
[353955698,1740166248909,-500.0,0.0001104,2]
[353955699,1740166248919,-706.73,0.0001104,2]
[353955700,1740166248931,-500.0,0.0001104,2]
[353955701,1740166248941,-500.0,0.00011041,2]
[353955702,1740166248951,-500.0,0.00011041,2]
[353955703,1740166248960,-643.11,0.00011041,2]
[353955704,1740166248970,-500.0,0.00011041,2]
[353955705,1740166248979,-500.0,0.00011041,2]
[353955706,1740166248990,-500.0,0.00011041,2]
[353955707,1740166248999,-645.38,0.00011041,2]
[353955708,1740166249011,-500.0,0.00011041,2]
[353955709,1740166249021,-500.0,0.00011041,2]
[353955710,1740166249031,-500.0,0.00011041,2]
[353955711,1740166249041,-500.0,0.00011041,2]
[353955712,1740166249051,-500.0,0.00011041,2]
[353955713,1740166249060,-500.0,0.00011041,2]
[353955714,1740166249070,-500.0,0.00011041,2]
[353955715,1740166249079,-553.19,0.00011041,2]
[353955716,1740166249089,-500.0,0.00011041,2]
[353955717,1740166249099,-500.0,0.00011041,2]
[353955718,1740166249108,-500.0,0.00011041,2]
[353955719,1740166249119,-500.0,0.00011041,2]
[353955720,1740166249129,-500.0,0.00011041,2]
[353955721,1740166249139,-500.0,0.00011041,2]
[353955722,1740166249149,-500.0,0.00011041,2]
[353955723,1740166249159,-500.0,0.00011041,2]
[353955724,1740166249169,-648.96,0.00011041,2]
[353955725,1740166249179,-500.0,0.00011041,2]
[353955726,1740166249189,-633.22,0.00011041,2]
[353955727,1740166249199,-997.07,0.00011041,2]
[353955728,1740166249210,-500.0,0.00011041,2]
[353955729,1740166249220,-563.63,0.00011041,2]
[353955730,1740166249230,-500.0,0.00011041,2]
[353955731,1740166249240,-500.0,0.00011041,2]
[353955732,1740166249250,-648.0,0.00011041,2]
[353955733,1740166249259,-821.86,0.00011041,2]
[353955734,1740166249269,-500.0,0.00011041,2]
[353955735,1740166249281,-500.0,0.00011041,2]
[353955736,1740166249291,-500.0,0.00011041,2]
[353955737,1740166249300,-827.92,0.00011041,2]
[353955738,1740166249311,-272.93896861,0.00011041,2]
[353955739,1740166249322,-500.0,0.00011041,2]
[353955740,1740166249332,-500.0,0.00011041,2]
[353955741,1740166249342,-500.0,0.00011041,2]
[353955742,1740166249351,-500.0,0.00011041,2]
[353955743,1740166249363,-500.0,0.00011041,2]
[353955744,1740166249373,-640.36,0.00011041,2]
[353955745,1740166249383,-691.95,0.00011041,2]
[353955746,1740166249392,-2107.14,0.00011041,2]
[353955747,1740166249402,-500.0,0.00011041,2]
[353955748,1740166249412,-500.0,0.00011041,2]
[353955749,1740166249422,-500.0,0.00011041,2]
[353955750,1740166249433,-500.0,0.00011041,2]
[353955751,1740166249444,-500.0,0.00011041,2]
[353955752,1740166249455,-500.0,0.00011041,2]
[353955753,1740166249466,-500.0,0.00011041,2]
[353955754,1740166249477,-500.0,0.00011041,2]
[353955755,1740166249488,-500.0,0.00011041,2]
[353955756,1740166249499,-602.98,0.00011041,2]
[353955757,1740166249510,-500.0,0.00011041,2]
[353955758,1740166249521,-500.0,0.00011041,2]
[353955759,1740166249531,-583.2,0.00011041,2]
[353955760,1740166249542,-806.96,0.00011041,2]
[353955761,1740166249553,-500.0,0.00011041,2]
[353955762,1740166249563,-895.86,0.00011041,2]
[353955763,1740166249574,-500.0,0.00011041,2]
[353955764,1740166249586,-500.0,0.00011041,2]
[353955765,1740166249597,-168.21230967,0.00011041,2]
[353955766,1740166249608,-663.49,0.00011041,2]
[353955767,1740166249619,-500.0,0.00011041,2]
[353955768,1740166249631,-500.0,0.00011041,2]
[353955769,1740166249643,-500.0,0.00011041,2]
[353955770,1740166249653,-614.22,0.00011041,2]
[353955771,1740166249664,-567.3,0.00011041,2]
[353955772,1740166249674,-500.0,0.00011041,2]
[353955773,1740166249684,-500.0,0.00011041,2]
[353955774,1740166249694,-500.0,0.00011041,2]
[353955775,1740166249704,-1131.28,0.00011041,2]
[353955776,1740166249714,-1024.7,0.00011041,2]
[353955777,1740166249724,-500.0,0.00011041,2]
[353955778,1740166249734,-500.0,0.00011041,2]
[353955779,1740166249744,-775.66,0.00011041,2]
[353955780,1740166249754,-765.75,0.00011041,2]
[353955781,1740166249766,-500.0,0.00011041,2]
[353955782,1740166249776,-520.23,0.00011041,2]
[353955783,1740166249786,-1114.12,0.00011041,2]
[353955784,1740166249795,-500.0,0.00011041,2]
[353955785,1740166249804,-654.39,0.00011041,2]
[353955786,1740166249814,-500.0,0.00011041,2]
[353955787,1740166249823,-611.93,0.00011041,2]
[353955788,1740166249833,-500.0,0.00011041,2]
[353955789,1740166249842,-1013.31,0.00011041,2]
[353955790,1740166249851,-500.0,0.00011041,2]
[353955791,1740166249860,-500.0,0.00011041,2]
[353955792,1740166249870,-643.99,0.00011041,2]
[353955793,1740166249879,-1444.43,0.00011041,2]
[353955794,1740166249889,-956.21,0.00011041,2]
[353955795,1740166249899,-543.53,0.00011041,2]
[353955796,1740166249908,-595.51,0.00011041,2]
[353955797,1740166249917,-500.0,0.00011041,2]
[353955798,1740166249927,-500.0,0.00011041,2]
[353955799,1740166249935,-732.54,0.00011041,2]
[353955800,1740166249946,-660.84,0.00011041,2]
[353955801,1740166249955,-670.18,0.00011041,2]
[353955802,1740166249966,-500.0,0.00011041,2]
[353955803,1740166249975,-900.8,0.00011041,2]
[353955804,1740166249985,-500.0,0.00011041,2]
[353955805,1740166249994,-500.0,0.00011041,2]
[353955806,1740166250004,-500.0,0.00011041,2]
[353955807,1740166250013,-887.25,0.00011041,2]
[353955808,1740166250023,-1008.16,0.00011041,2]
[353955809,1740166250033,-500.0,0.00011041,2]
[353955810,1740166250043,-569.35,0.00011041,2]
[353955811,1740166250053,-500.0,0.00011041,2]
[353955812,1740166250063,-500.0,0.00011041,2]
[353955813,1740166250072,-500.0,0.00011041,2]
[353955814,1740166250082,-426.18142103,0.00011041,2]
[353955815,1740166250091,-500.0,0.00011041,2]
[353955816,1740166250102,-679.57,0.00011041,2]
[353955817,1740166250112,-1395.78,0.00011041,2]
[353955818,1740166250121,-663.55,0.00011041,2]
[353955819,1740166250130,-745.49,0.00011041,2]
[353955820,1740166250140,-500.0,0.00011041,2]
[353955821,1740166250150,-500.0,0.00011041,2]
[353955822,1740166250162,-1259.43,0.00011041,2]
[353955823,1740166250171,-619.57,0.00011041,2]
[353955824,1740166250181,-500.0,0.00011041,2]
[353955825,1740166250191,-787.03,0.00011041,2]
[353955826,1740166250200,-703.87,0.00011041,2]
[353955827,1740166250210,-1075.08,0.00011041,2]
[353955828,1740166250220,-500.0,0.00011041,2]
[353955829,1740166250229,-1164.41,0.00011041,2]
[353955830,1740166250240,-796.18,0.00011041,2]
[353955831,1740166250250,-500.0,0.00011041,2]
[353955832,1740166250259,-574.49,0.00011041,2]
[353955833,1740166250269,-500.0,0.00011041,2]
[353955834,1740166250280,-500.0,0.00011041,2]
[353955835,1740166250292,-740.65,0.00011041,2]
[353955836,1740166250303,-500.0,0.00011041,2]
[353955837,1740166250313,-500.0,0.00011041,2]
[353955838,1740166250322,-500.0,0.00011041,2]
[353955839,1740166250332,-500.0,0.00011041,2]
[353955840,1740166250342,-500.0,0.00011041,2]
[353955841,1740166250351,-500.0,0.00011041,2]
[353955842,1740166250360,-500.0,0.00011041,2]
[353955843,1740166250371,-500.0,0.00011041,2]
[353955844,1740166250381,-725.37,0.00011041,2]
[353955845,1740166250391,-500.0,0.00011041,2]
[353955846,1740166250401,-532.59,0.00011041,2]
[353955847,1740166250410,-500.0,0.00011041,2]
[353955848,1740166250420,-500.0,0.00011041,2]
[353955849,1740166250430,-500.0,0.00011041,2]
[353955850,1740166250439,-764.92,0.00011041,2]
[353955851,1740166250448,-524.24,0.00011041,2]
[353955852,1740166250458,-563.65,0.00011041,2]
[353955853,1740166250467,-500.0,0.00011041,2]
[353955854,1740166250477,-1582.2,0.00011041,2]
[353955855,1740166250486,-591.39,0.00011041,2]
[353955856,1740166250496,-648.73,0.00011041,2]
[353955857,1740166250506,-750.8,0.00011041,2]
[353955858,1740166250516,-1142.01,0.00011041,2]
[353955859,1740166250526,-1572.39,0.00011041,2]
[353955860,1740166250536,-787.25,0.00011041,2]
[353955861,1740166250545,-1726.26,0.00011041,2]
[353955862,1740166250555,-500.0,0.00011041,2]
[353955863,1740166250566,-551.89,0.00011041,2]
[353955864,1740166250579,-808.98,0.00011041,2]
[353955865,1740166250589,-719.22,0.00011041,2]
[353955866,1740166250598,-716.26,0.00011041,2]
[353955867,1740166250608,-500.0,0.00011041,2]
[353955868,1740166250618,-1120.96,0.00011041,2]
[353955869,1740166250628,-1267.12,0.00011041,2]
[353955870,1740166250639,-1573.36,0.00011041,2]
[353955871,1740166250648,-1726.67,0.00011041,2]
[353955872,1740166250657,-500.0,0.00011041,2]
[353955873,1740166250667,-500.0,0.00011041,2]
[353955874,1740166250676,-1193.93,0.00011041,2]
[353955875,1740166250686,-666.89,0.00011041,2]
[353955876,1740166250695,-1010.56,0.00011041,2]
[353955877,1740166250705,-939.06,0.00011041,2]
[353955878,1740166250714,-1221.47,0.00011041,2]
[353955879,1740166250723,-1273.81,0.00011041,2]
[353955880,1740166250732,-517.79,0.00011041,2]
[353955881,1740166250742,-500.0,0.00011041,2]
[353955882,1740166250751,-500.0,0.00011041,2]
[353955883,1740166250760,-686.12,0.00011041,2]
[353955884,1740166250769,-500.0,0.00011041,2]
[353955885,1740166250779,-500.0,0.00011041,2]
[353955886,1740166250788,-1238.36,0.00011041,2]
[353955887,1740166250798,-500.0,0.00011041,2]
[353955888,1740166250807,-583.79,0.00011041,2]
[353955889,1740166250816,-500.0,0.00011041,2]
[353955890,1740166250826,-1285.68,0.00011041,2]
[353955891,1740166250835,-549.57,0.00011041,2]
[353955892,1740166250844,-1137.61,0.00011041,2]
[353955893,1740166250854,-677.34,0.00011041,2]
[353955894,1740166250863,-500.0,0.00011041,2]
[353955895,1740166250872,-500.0,0.00011041,2]
[353955896,1740166250882,-763.86,0.00011041,2]
[353955897,1740166250891,-726.75,0.00011041,2]
[353955898,1740166250900,-698.35,0.00011041,2]
[353955899,1740166250909,-500.0,0.00011041,2]
[353955900,1740166250918,-672.073822,0.00011041,2]
[353955901,1740166250927,-767.21,0.00011041,2]
[353955902,1740166250936,-500.0,0.00011041,2]
[353955903,1740166250946,-803.17,0.00011041,2]
[353955904,1740166250955,-2234.17,0.00011041,2]
[353955905,1740166250964,-1357.94,0.00011041,2]
[353955906,1740166250973,-1237.74,0.00011041,2]
[353955907,1740166250982,-583.63,0.00011041,2]
[353955908,1740166250991,-500.0,0.00011041,2]
[353955909,1740166251000,-918.44,0.00011041,2]
[353955910,1740166251010,-1012.34,0.00011041,2]
[353955911,1740166251019,-981.1,0.00011041,2]
[353955912,1740166251028,-1855.09,0.00011041,2]
[353955913,1740166251037,-596.63,0.00011041,2]
[353955914,1740166251047,-865.43,0.00011041,2]
[353955915,1740166251056,-1241.18,0.00011041,2]
[353955916,1740166251066,-1394.78,0.00011041,2]
[353955917,1740166251075,-1096.87,0.00011041,2]
[353955918,1740166251084,-500.0,0.00011041,2]
[353955919,1740166251092,-500.0,0.00011041,2]
[353955920,1740166251102,-500.0,0.00011041,2]
[353955921,1740166251111,-2368.01,0.00011041,2]
[353955922,1740166251120,-1095.46,0.00011041,2]
[353955923,1740166251129,-1340.39,0.00011041,2]
[353955924,1740166251138,-500.0,0.00011041,2]
[353955925,1740166251147,-2175.04,0.00011041,2]
[353955926,1740166251156,-152.400988,0.00011041,2]
[353955927,1740166251165,-638.80359298,0.00011041,2]
[353955928,1740166251174,-1493.79,0.00011041,2]
[353955929,1740166251182,-1604.57,0.00011041,2]
[353955930,1740166251191,-1091.59,0.00011041,2]
[353955931,1740166251200,-2020.06,0.00011041,2]
[353955932,1740166251209,-1575.8,0.00011041,2]
[353955933,1740166251218,-500.0,0.00011041,2]
[353955934,1740166251227,-500.0,0.00011041,2]
[353955935,1740166251235,-1714.98,0.00011041,2]
[353955936,1740166251244,-500.0,0.00011041,2]
[353955937,1740166251254,-1284.3,0.00011041,2]
[353955938,1740166251466,-500.0,0.00011041,2]
[353955939,1740166251477,-1796.59,0.00011041,2]
[353955940,1740166251487,-500.0,0.00011041,2]
[353955941,1740166251496,-11866.15,0.00011041,2]
[353955942,1740166251505,-772.39,0.00011041,2]
[353955943,1740166251515,-1826.4,0.00011041,2]
[353955944,1740166251523,-780.8,0.00011041,2]
[353955945,1740166251533,-1656.12,0.00011041,2]
[353955946,1740166251542,-1750.79,0.00011041,2]
[353955947,1740166251551,-685.25,0.00011041,2]
[353955948,1740166251560,-500.0,0.00011041,2]
[353955949,1740166251570,-2073.94,0.00011041,2]
[353955950,1740166251579,-2380.4,0.00011041,2]
[353955951,1740166251590,-1649.67,0.00011041,2]
[353955952,1740166251602,-1324.88,0.00011041,2]
[353955953,1740166251611,-3730.27,0.00011041,2]
[353955954,1740166251620,-1633.44,0.00011041,2]
[353955955,1740166251631,-983.4,0.00011041,2]
[353955956,1740166251643,-1151.36,0.00011041,2]
[353955957,1740166251653,-500.0,0.00011041,2]
[353955958,1740166251663,-823.59,0.00011041,2]
[353955959,1740166251674,-500.0,0.00011041,2]
[353955960,1740166251685,-1217.32,0.00011041,2]
[353955961,1740166251694,-1681.07,0.00011041,2]
[353955962,1740166251703,-1663.12,0.00011041,2]
[353955963,1740166251713,-1693.72,0.00011041,2]
[353955964,1740166251722,-500.0,0.00011041,2]
[353955965,1740166251731,-500.0,0.00011041,2]
[353955966,1740166251741,-763.74,0.00011041,2]
[353955967,1740166251750,-620.82,0.00011041,2]
[353955968,1740166251760,-500.0,0.00011041,2]
[353955969,1740166251771,-2094.91,0.00011041,2]
[353955970,1740166251780,-693.25,0.00011041,2]
[353955971,1740166251790,-1398.96,0.00011041,2]
[353955972,1740166251799,-500.0,0.00011041,2]
[353955973,1740166251808,-683.55,0.00011041,2]
[353955974,1740166251818,-784.57,0.00011041,2]
[353955975,1740166251827,-718.67,0.00011041,2]
[353955976,1740166251836,-500.0,0.00011041,2]
[353955977,1740166251845,-1449.23,0.00011041,2]
[353955978,1740166251855,-500.0,0.00011041,2]
[353955979,1740166251864,-500.0,0.00011041,2]
[353955980,1740166251874,-500.0,0.00011041,2]
[353955981,1740166251884,-2407.54,0.00011041,2]
[353955982,1740166251893,-1275.1,0.00011041,2]
[353955983,1740166251903,-1101.28,0.00011041,2]
[353955984,1740166251912,-500.0,0.00011041,2]
[353955985,1740166251921,-634.46,0.00011041,2]
[353955986,1740166251931,-817.49,0.00011041,2]
[353955987,1740166251940,-500.0,0.00011041,2]
[353955988,1740166251951,-500.0,0.00011041,2]
[353955989,1740166251961,-500.0,0.00011041,2]
[353955990,1740166251971,-988.55,0.00011041,2]
[353955991,1740166251981,-500.0,0.00011041,2]
[353955992,1740166251990,-1236.67,0.00011041,2]
[353955993,1740166251999,-2239.38,0.00011041,2]
[353955994,1740166252008,-500.0,0.00011041,2]
[353955995,1740166252017,-500.0,0.00011041,2]
[353955996,1740166252026,-709.59,0.00011041,2]
[353955997,1740166252035,-1129.92,0.00011041,2]
[353955998,1740166252045,-684.21,0.00011041,2]
[353955999,1740166252054,-500.0,0.00011041,2]
[353956000,1740166252063,-500.0,0.00011041,2]
[353956001,1740166252072,-1329.15,0.00011041,2]
[353956002,1740166252081,-1788.12,0.00011041,2]
[353956003,1740166252090,-500.0,0.00011041,2]
[353956004,1740166252099,-1352.42,0.00011041,2]
[353956005,1740166252108,-1350.71,0.00011041,2]
[353956006,1740166252117,-809.16,0.00011041,2]
[353956007,1740166252127,-500.0,0.00011041,2]
[353956008,1740166252136,-861.48,0.00011041,2]
[353956009,1740166252145,-534.63,0.00011041,2]
[353956010,1740166252155,-500.0,0.00011041,2]
[353956011,1740166252164,-1781.42,0.00011041,2]
[353956012,1740166252173,-761.56,0.00011041,2]
[353956013,1740166252182,-1193.17,0.00011041,2]
[353956014,1740166252192,-683.33,0.00011041,2]
[353956015,1740166252201,-1200.7,0.00011041,2]
[353956016,1740166252210,-500.0,0.00011041,2]
[353956017,1740166252219,-500.0,0.00011041,2]
[353956018,1740166252228,-500.0,0.00011041,2]
[353956019,1740166252237,-1869.75,0.00011041,2]
[353956020,1740166252247,-2721.91,0.00011041,2]
[353956021,1740166252256,-852.48,0.00011041,2]
[353956022,1740166252265,-500.0,0.00011041,2]
[353956023,1740166252275,-1543.73,0.00011041,2]
[353956024,1740166252284,-898.35,0.00011041,2]
[353956025,1740166252295,-2148.71,0.00011041,2]
[353956026,1740166252304,-1624.46,0.00011041,2]
[353956027,1740166252313,-500.0,0.00011041,2]
[353956028,1740166252323,-557.71,0.00011041,2]
[353956029,1740166252332,-1397.01,0.00011041,2]
[353956030,1740166252342,-4788.16,0.00011041,2]
[353956031,1740166252351,-1380.37,0.00011041,2]
[353956032,1740166252360,-841.47,0.00011041,2]
[353956033,1740166252370,-500.0,0.00011041,2]
[353956034,1740166252380,-1363.92,0.00011041,2]
[353956035,1740166252388,-1375.54,0.00011041,2]
[353956036,1740166252398,-500.0,0.00011041,2]
[353956037,1740166252407,-1411.42,0.00011041,2]
[353956038,1740166252416,-500.0,0.00011041,2]
[353956039,1740166252425,-3352.33,0.00011041,2]
[353956040,1740166252434,-500.0,0.00011041,2]
[353956041,1740166252443,-500.0,0.00011041,2]
[353956042,1740166252452,-500.0,0.00011041,2]
[353956043,1740166252462,-1801.07,0.00011041,2]
[353956044,1740166252471,-607.0,0.00011041,2]
[353956045,1740166252480,-500.0,0.00011041,2]
[353956046,1740166252490,-1221.11,0.00011041,2]
[353956047,1740166252499,-1162.17,0.00011041,2]
[353956048,1740166252508,-2384.96,0.00011041,2]
[353956049,1740166252517,-885.58,0.00011041,2]
[353956050,1740166252526,-500.0,0.00011041,2]
[353956051,1740166252535,-500.0,0.00011041,2]
[353956052,1740166252544,-500.0,0.00011041,2]
[353956053,1740166252554,-500.0,0.00011041,2]
[353956054,1740166252563,-500.0,0.00011041,2]
[353956055,1740166252572,-500.0,0.00011041,2]
[353956056,1740166252581,-500.0,0.00011041,2]
[353956057,1740166252591,-2741.06,0.00011041,2]
[353956058,1740166252600,-500.0,0.00011041,2]
[353956059,1740166252609,-1790.0,0.00011041,2]
[353956060,1740166252619,-2640.79,0.00011041,2]
[353956061,1740166252628,-1432.61,0.00011041,2]
[353956062,1740166252637,-1353.38,0.00011041,2]
[353956063,1740166252646,-500.0,0.00011041,2]
[353956064,1740166252655,-1346.42,0.00011041,2]
[353956065,1740166252664,-858.06,0.00011041,2]
[353956066,1740166252673,-801.89,0.00011041,2]
[353956067,1740166252683,-500.0,0.00011041,2]
[353956068,1740166252692,-930.84,0.00011041,2]
[353956069,1740166252701,-1680.11,0.00011041,2]
[353956070,1740166252710,-2545.55,0.00011041,2]
[353956071,1740166252719,-1151.31,0.00011041,2]
[353956072,1740166252729,-500.0,0.00011041,2]
[353956073,1740166252738,-980.06,0.00011041,2]
[353956074,1740166252748,-799.49,0.00011041,2]